fUSD/lending_fUSD_20240513
["ID","MTS","AMOUNT","RATE_DAILY","PERIOD"]
[326924986,1715593838219,-462.03,0.00012367,2]
[326924987,1715593838228,-1226.0,0.00012597,2]
[326924988,1715593838238,-1758.75643118,0.00012597,2]
[326924990,1715593838249,-30.24356882,0.00012597,2]
[326924992,1715593838258,-543.0,0.00012597,2]
[326924994,1715593838268,-956.0,0.00012597,2]
[326924997,1715593838277,-210.0,0.0001261,2]
[326925000,1715593838286,-1016.31287409,0.00012622,2]
[326925001,1715593838295,-699.95004313,0.0001265,2]
[326925002,1715593838304,-248.05946692,0.00012751,2]
[326925003,1715593838313,-200.0,0.00012777,2]
[326925004,1715593838322,-200.0,0.00012777,2]
[326925005,1715593838331,-1000.0,0.00012777,2]
[326925006,1715593838346,-500.0,0.00012777,2]
[326925007,1715593838355,-152.46428124,0.0001278,2]
[326925008,1715593838364,-152.46428122,0.00012795,2]
[326925009,1715593838374,-500.0,0.000128,2]
[326925010,1715593838383,-152.46428122,0.0001281,2]
[326925011,1715593838394,-152.46428122,0.00012825,2]
[326925012,1715593838403,-152.46428122,0.0001284,2]
[326925013,1715593838412,-900.54106739,0.0001285,2]
[326925014,1715593838422,-18076.15005317,0.0001285,5]
[326925015,1715593838431,-1000.0,0.0001285,2]
[326925016,1715593838440,-152.46428122,0.00012855,2]
[326925017,1715593838449,-152.46428122,0.0001287,2]
[326925018,1715593838458,-832.24,0.00012874,2]
[326925019,1715593838467,-255.49503332,0.00012876,2]
[326925020,1715593838476,-5158.7771247,0.00012876,2]
[326925021,1715593838486,-500.0,0.00012876,2]
[326925022,1715593838495,-500.0,0.00012876,2]
[326925023,1715593838504,-500.0,0.00012876,2]
[326925024,1715593838513,-294.90044969,0.00012876,2]
[326925025,1715593838522,-385.47575115,0.00012878,2]
[326925026,1715593838532,-2621.41862001,0.00012878,2]
[326925027,1715593838541,-2326.76401065,0.00012878,2]
[326925028,1715593838550,-155.06301259,0.00012878,2]
[326925029,1715593838559,-158.3350855,0.00012878,2]
[326925030,1715593838568,-260.4209643,0.00012878,2]
[326925031,1715593838578,-4761.11307675,0.00012878,2]
[326925032,1715593838587,-206.33942574,0.00012878,2]
[326925033,1715593838596,-349.17293601,0.00012878,2]
[326925034,1715593838605,-155.0,0.00012878,2]
[326925035,1715593838614,-1527.4498505,0.00012879,2]
[326925036,1715593838624,-158.76,0.00012879,2]
[326925037,1715593838633,-500.0,0.00012879,2]
[326925038,1715593838642,-500.0,0.00012879,2]
[326925039,1715593838652,-500.0,0.00012879,2]
[326925040,1715593838661,-500.0,0.00012879,2]
[326925041,1715593838670,-500.0,0.00012879,2]
[326925042,1715593838680,-500.0,0.00012879,2]
[326925043,1715593838688,-158.9766172,0.00012879,2]
[326925044,1715593838698,-500.0,0.00012879,2]
[326925045,1715593838707,-500.0,0.00012879,2]
[326925046,1715593838716,-500.0,0.00012879,2]
[326925047,1715593838724,-500.0,0.00012879,2]
[326925048,1715593838734,-500.0,0.00012879,2]
[326925049,1715593838742,-208.29299492,0.00012879,2]
[326925050,1715593838753,-500.0,0.00012879,2]
[326925051,1715593838764,-500.0,0.00012879,2]
[326925052,1715593838775,-500.0,0.00012879,2]
[326925053,1715593838785,-231.5742414,0.00012879,2]
[326925054,1715593838795,-500.0,0.00012879,2]
[326925055,1715593838805,-434.42111522,0.00012879,2]
[326925056,1715593838816,-464.0,0.00012879,2]
[326925057,1715593838826,-500.0,0.00012879,2]
[326925058,1715593838836,-500.0,0.00012879,2]
[326925059,1715593838846,-335.70842842,0.00012879,2]
[326925060,1715593838857,-500.0,0.00012879,2]
[326925061,1715593838866,-500.0,0.00012879,2]
[326925062,1715593838876,-500.0,0.00012879,2]
[326925063,1715593838886,-500.0,0.00012879,2]
[326925064,1715593838895,-500.0,0.00012879,2]
[326925065,1715593838904,-687.0,0.0001288,2]
[326925066,1715593838913,-20427.09421987,0.0001288,2]
[326925092,1715593843083,-6885.99509328,0.0001288,2]
[326925093,1715593843094,-539.27343935,0.0001288,2]
[326925103,1715593845905,-620.0,0.0001288,2]
[326925104,1715593845914,-1712.0,0.0001288,2]
[326925121,1715593894695,500.0,9.78e-05,2]
[326925125,1715593954639,7514.01547003,9.78e-05,2]
[326925126,1715593968647,4574.39344986,9.78e-05,2]
[326925127,1715594009759,1200.0,8.136e-05,2]
[326925128,1715594012057,1200.0,8.958e-05,2]
[326925129,1715594013705,1200.0,9.78e-05,2]
[326925130,1715594015348,1200.0,0.00010602,2]
[326925131,1715594057560,500.0,8.684e-05,2]
[326925132,1715594059230,500.0,0.00010328,2]
[326925133,1715594070994,900.0,8.136e-05,2]
[326925134,1715594073067,900.0,8.958e-05,2]
[326925135,1715594074703,900.0,9.78e-05,2]
[326925136,1715594076989,900.0,0.00010602,2]
[326925138,1715594330614,673.09,0.00011093,2]
[326925139,1715594335068,-155.0,0.0001141,2]
[326925141,1715594433009,1845.0,0.000111,2]
[326925142,1715594433034,2138.61593626,0.000111,2]
[326925143,1715594433060,4599.34406374,0.000111,2]
[326925144,1715594459326,250.0,0.000111,2]
[326925146,1715594596540,154.0,0.00011091,2]
[326925147,1715594634951,499.35,0.00011137,2]
[326925148,1715594706667,250.0,0.00011167,2]
[326925149,1715594728451,267.87,0.00011299,2]
[326925150,1715594728680,267.87,0.0001133,2]
[326925151,1715594728914,267.87,0.00011361,2]
[326925152,1715594729124,267.87,0.00011392,2]
[326925153,1715594764807,-882.82313316,0.00011422,2]
[326925154,1715594796987,1117.17686684,0.00011422,2]
[326925156,1715594875596,448.39,0.00010995,2]
[326925167,1715595032006,-528.592,0.00011422,2]
[326925169,1715595032019,-71.52113316,0.00011422,2]
[326925171,1715595032029,-267.87,0.00011423,2]
[326925172,1715595032037,-443.75676185,0.00011424,2]
[326925175,1715595032049,-155.70323815,0.00011424,2]
[326925177,1715595032058,-1200.0,0.00011424,2]
[326925179,1715595032067,-95.67556879,0.00011424,2]
[326925180,1715595032205,-363.20539468,0.00011424,2]
[326925181,1715595032216,-441.11903653,0.00011424,2]
[326925182,1715595032226,-599.46,0.00011427,2]
[326925183,1715595032236,-599.46,0.0001143,2]
[326925184,1715595032245,-225.65345642,0.00011433,2]
[326925185,1715595032256,-373.80654358,0.00011433,2]
[326925186,1715595032266,-7.02327098,0.00011436,2]
[326925187,1715595032277,-592.43672902,0.00011436,2]
[326925188,1715595032286,-599.46,0.00011439,2]
[326925189,1715595032295,-599.46,0.00011442,2]
[326925190,1715595032304,-599.46,0.00011445,2]
[326925191,1715595032314,-599.46,0.00011448,2]
[326925192,1715595032323,-599.46,0.00011451,2]
[326925193,1715595032331,-599.46,0.00011454,2]
[326925194,1715595032340,-267.87,0.00011454,2]
[326925195,1715595032349,-599.46,0.00011457,2]
[326925196,1715595032358,-599.46,0.0001146,2]
[326925197,1715595032367,-599.46,0.00011463,2]
[326925198,1715595032376,-599.46,0.00011466,2]
[326925199,1715595032385,-599.46,0.00011469,2]
[326925200,1715595032393,-599.46,0.00011472,2]
[326925201,1715595032402,-599.46,0.00011475,2]
[326925203,1715595032411,-599.46,0.00011478,2]
[326925205,1715595032420,-599.46,0.00011481,2]
[326925206,1715595032428,-267.87,0.00011485,2]
[326925207,1715595032437,-267.87,0.00011516,2]
[326925208,1715595032446,-267.87,0.00011547,2]
[326925209,1715595032454,-267.87,0.00011578,2]
[326925210,1715595032463,-267.87,0.00011609,2]
[326925211,1715595032472,-267.87,0.0001164,2]
[326925212,1715595032483,-267.87,0.00011671,2]
[326925213,1715595032491,-267.87,0.00011702,2]
[326925214,1715595032501,-267.87,0.00011733,2]
[326925215,1715595032509,-267.87,0.00011764,2]
[326925216,1715595032519,-267.87,0.00011795,2]
[326925217,1715595032528,-500.65,0.00011807,2]
[326925218,1715595032538,-267.87,0.00011826,2]
[326925219,1715595032548,-221.47,0.00011846,2]
[326925220,1715595032557,-267.87,0.00011857,2]
[326925221,1715595032566,-267.87,0.00011888,2]
[326925222,1715595032575,-409.94933149,0.00012,2]
[326925223,1715595032584,-814.43,0.00012055,2]
[326925224,1715595032593,-171.87,0.0001217,2]
[326925225,1715595032603,-326.54,0.00012178,2]
[326925226,1715595032612,-1046.16,0.00012192,2]
[326925227,1715595032622,-163.31,0.00012192,2]
[326925228,1715595032631,-163.31,0.00012192,2]
[326925229,1715595032640,-163.31,0.00012192,2]
[326925230,1715595032649,-162.49,0.00012192,2]
[326925231,1715595032658,-900.0,0.00012246,2]
[326925232,1715595032667,-154.0,0.00012477,2]
[326925233,1715595032677,-1000.0,0.000125,2]
[326925234,1715595032686,-499.35,0.00012529,2]
[326925235,1715595032695,-150.127,0.00012597,2]
[326925236,1715595032704,-750.5394,0.00012676,2]
[326925237,1715595032713,-47290.7585,0.0001268,2]
[326925238,1715595032725,-469.4591,0.0001268,2]
[326925239,1715595032734,-1562.13781289,0.0001273,2]
[326925240,1715595032743,-251.91007333,0.00012749,2]
[326925241,1715595032752,-170.23118,0.0001275,2]
[326925242,1715595032762,-198.44757354,0.00012751,2]
[326925243,1715595032771,-14509.51758885,0.0001276,2]
[326925244,1715595032780,-856.87085764,0.00012772,2]
[326925245,1715595032789,-200.0,0.00012776,2]
[326925246,1715595032798,-200.0,0.00012777,2]
[326925247,1715595032810,-200.0,0.00012777,2]
[326925248,1715595032819,-1000.0,0.00012777,2]
[326925249,1715595032829,-500.0,0.00012777,2]
[326925250,1715595032839,-173.9856,0.0001278,2]
[326925252,1715595032848,-20985.7695,0.0001278,2]
[326925254,1715595032857,-1000.0,0.0001278,2]
[326925256,1715595032866,-165.1494,0.0001278,2]
[326925258,1715595032875,-100000.0,0.0001278,2]
[326925260,1715595032884,-193.3446,0.0001278,2]
[326925262,1715595032894,-157.2843,0.0001278,2]
[326925264,1715595032903,-433.45246066,0.0001278,2]
[326925266,1715595032912,-311.01572276,0.0001278,2]
[326925269,1715595032922,-188.69303716,0.0001278,2]
[326925271,1715595032931,-433.45246064,0.00012791,2]
[326925273,1715595032940,-1000.0,0.000128,2]
[326925275,1715595032949,-433.45246064,0.00012802,2]
[326925277,1715595032959,-1000.0,0.0001281,2]
[326925279,1715595032968,-433.45246064,0.00012813,2]
[326925281,1715595032978,-433.45246064,0.00012824,2]
[326925283,1715595032987,-433.45246064,0.00012835,2]
[326925285,1715595032997,-433.45246064,0.00012845,2]
[326925287,1715595033005,-433.45246064,0.00012856,2]
[326925289,1715595033015,-433.45246064,0.00012867,2]
[326925291,1715595033025,-535.2996213,0.00012877,2]
[326925293,1715595033034,-500.0,0.00012877,2]
[326925295,1715595033043,-500.0,0.00012877,2]
[326925297,1715595033052,-327.9752477,0.00012878,2]
[326925299,1715595033061,-677.48151357,0.00012878,2]
[326925301,1715595033070,-1144.51683776,0.00012878,2]
[326925303,1715595033080,-2899.56502548,0.00012878,2]
[326925305,1715595033089,-155.0,0.00012878,2]
[326925307,1715595033099,-409.26681316,0.00012878,2]
[326925309,1715595033108,-211.02201135,0.00012878,2]
[326925310,1715595033117,-155.45907951,0.00012878,2]
[326925311,1715595033127,-305.64014606,0.00012878,2]
[326925312,1715595033136,-207.95050793,0.00012878,2]
[326925313,1715595033145,-1485.87622864,0.00012878,2]
[326925314,1715595033154,-201.91969004,0.00012878,2]
[326925315,1715595033164,-622.20002294,0.00012878,2]
[326925316,1715595033173,-156.43762157,0.00012878,2]
[326925317,1715595033183,-8359.13953205,0.00012878,2]
[326925318,1715595033192,-947.54383151,0.00012878,2]
[326925319,1715595033204,-561.51132701,0.00012878,2]
[326925320,1715595033215,-2684.51281324,0.00012878,2]
[326925321,1715595033227,-655.60712406,0.00012878,2]
[326925322,1715595033243,-6884.80178068,0.00012878,2]
[326925323,1715595033252,-247.45815736,0.00012878,3]
[326925324,1715595033264,-315.725,0.00012878,3]
[326925325,1715595033275,-579.978432,0.00012878,3]
[326925326,1715595033287,-1203.63841064,0.00012878,3]
[326925327,1715595033296,-197.13397992,0.00012878,2]
[326925328,1715595033305,-656.01389756,0.00012878,2]
[326925329,1715595033315,-1534.2031464,0.00012878,2]
[326925330,1715595033324,-12284.65535664,0.00012878,2]
[326925331,1715595033336,-266.95294903,0.00012878,2]
[326925332,1715595033347,-670.28116184,0.00012878,2]
[326925333,1715595033358,-270.25,0.00012878,2]
[326925355,1715595038138,-585.89428871,0.00012878,2]
[326925357,1715595038151,-5514.77883635,0.00012878,2]
[326925358,1715595038162,-316.10845257,0.00012878,2]
[326925359,1715595038171,-433.45246064,0.00012878,2]
[326925360,1715595038180,-808.97,0.00012879,2]
[326925361,1715595038190,-808.97,0.00012879,2]
[326925362,1715595038199,-808.97,0.00012879,2]
[326925363,1715595038208,-808.97,0.00012879,2]
[326925364,1715595038218,-808.97,0.00012879,2]
[326925365,1715595038227,-500.0,0.00012879,2]
[326925366,1715595038238,-634.60400074,0.00012879,2]
[326925367,1715595038247,-197.70207084,0.00012879,2]
[326925368,1715595038256,-500.0,0.00012879,2]
[326925369,1715595038265,-500.0,0.00012879,2]
[326925370,1715595038274,-427.1385973,0.00012879,2]
[326925371,1715595038283,-151.0,0.00012879,2]
[326925372,1715595038293,-554.0,0.0001288,2]
[326925373,1715595038302,-3616.617,0.0001288,2]
[326925374,1715595038312,-24901.32132119,0.0001288,2]
[326925375,1715595038324,-2875.0419189,0.0001288,2]
[326925376,1715595038335,-220685.14230197,0.0001288,2]
[326925377,1715595038347,-655.43396062,0.0001288,2]
[326925385,1715595040418,-711.03564216,0.0001288,2]
[326925386,1715595041674,-76315.65453212,0.0001288,2]
[326925435,1715595043809,-2850.9449708,0.0001288,2]
[326925437,1715595043822,-133008.22227312,0.0001288,2]
[326925459,1715595046303,-200.0,0.000119,4]
[326925460,1715595046313,-666.42941081,0.0001287,2]
[326925461,1715595046324,-3270.56,0.0001287,2]
[326925462,1715595046335,-1663.50005,0.0001287,2]
[326925505,1715595054642,492.21996956,0.00010995,2]
[326925506,1715595062736,1000.0,8.136e-05,2]
[326925507,1715595064378,1000.0,8.958e-05,2]
[326925508,1715595066032,1000.0,9.78e-05,2]
[326925509,1715595067720,1000.0,0.00010602,2]
[326925510,1715595182161,700.0,9.506e-05,2]
[326925511,1715595183817,700.0,0.00010328,2]
[326925512,1715595186361,700.0,0.0001115,2]
[326925513,1715595187979,-1000.0,0.00011424,2]
[326925514,1715595188003,-162.99254845,0.0001175,2]
[326925515,1715595188028,-700.39,0.0001185,2]
[326925516,1715595188050,-184.59,0.00011911,2]
[326925517,1715595188070,-409.94933149,0.00012,2]
[326925518,1715595188092,-500.0,0.00012,4]
[326925519,1715595188114,-800.0,0.000121,4]
[326925520,1715595188135,-1100.0,0.000122,4]
[326925521,1715595188155,-299.86387542,0.00012234,2]
[326925522,1715595188175,-1000.0,0.00012246,2]
[326925523,1715595188195,-1400.0,0.000123,4]
[326925524,1715595188215,-200.0,0.000124,4]
[326925525,1715595188238,-200.0,0.000125,4]
[326925526,1715595188259,-200.0,0.000126,4]
[326925527,1715595188281,-10842.21424464,0.0001268,2]
[326925529,1715595194290,500.0,8.684e-05,2]
[326925530,1715595195667,170.45,9.519e-05,2]
[326925531,1715595195988,500.0,0.00010328,2]
[326925532,1715595200044,500.0,8.684e-05,2]
[326925533,1715595201742,500.0,0.00010328,2]
[326925537,1715595368849,437.8087041,0.00025,120]
[326925543,1715595612402,500.0,0.00010328,2]
[326925544,1715595612778,500.0,0.00010328,2]
[326925545,1715595613177,500.0,0.00010328,2]
[326925546,1715595613554,500.0,0.00010328,2]
[326925547,1715595613941,500.0,0.00010328,2]
[326925548,1715595614285,500.0,0.00010328,2]
[326925549,1715595614668,500.0,0.00010328,2]
[326925550,1715595615023,561.0,0.00010328,2]
[326925551,1715595627563,500.0,0.00010328,2]
[326925552,1715595627947,500.0,0.00010328,2]
[326925553,1715595628302,500.0,0.00010328,2]
[326925554,1715595628667,500.0,0.00010328,2]
[326925555,1715595629087,500.0,0.00010328,2]
[326925556,1715595629477,500.0,0.00010328,2]
[326925557,1715595629832,500.0,0.00010328,2]
[326925558,1715595630187,778.0,0.00010328,2]
[326925575,1715596232319,-483.88,0.00011851,2]
[326925576,1715596232332,-250.0,0.00011854,2]
[326925577,1715596232343,-560.32,0.00011862,2]
[326925578,1715596232354,-177.17,0.00011871,2]
[326925579,1715596232364,-439.68,0.00011881,2]
[326925580,1715596232374,-500.0,0.00011972,2]
[326925581,1715596232385,-500.0,0.00011972,2]
[326925582,1715596232395,-409.94933149,0.00012669,2]
[326925583,1715596232404,-1030.38846551,0.0001267,2]
[326925584,1715596232414,-1840.21394606,0.0001268,2]
[326925585,1715596233561,-1415.06371918,0.0001268,2]
[326925586,1715596233572,-1946.04579012,0.0001268,2]
[326925587,1715596233584,-83.77621176,0.0001268,2]
[326925588,1715596233596,-615.77052,0.0001268,2]
[326925589,1715596233607,-300.45326824,0.0001268,2]
[326925590,1715596233616,-36.58383838,0.0001268,2]
[326925591,1715596233770,-1915.75,0.0001268,2]
[326925592,1715596233782,-550.46035353,0.0001268,2]
[326925593,1715596233793,-357.905496,0.0001268,2]
[326925595,1715596233804,-1113.3161258,0.0001268,2]
[326925597,1715596233815,-293.21297153,0.0001268,2]
[326925670,1715596238580,-31179.54950158,0.0001268,2]
[326925675,1715596238783,-45191.98320981,0.0001268,2]
[326925676,1715596238795,-475.86473686,0.0001268,2]
[326925677,1715596238806,-1474.5755582,0.0001268,2]
[326925678,1715596238817,-5779.61437524,0.0001268,2]
[326925679,1715596238829,-287.01829765,0.0001268,2]
[326925680,1715596238840,-460.72551053,0.0001268,2]
[326925681,1715596238852,-10883.44002489,0.0001268,2]
[326925682,1715596238862,-232.77779014,0.00012751,2]
[326925683,1715596238871,-2207.39,0.00012751,4]
[326925684,1715596238879,-983.2592,0.0001277,2]
[326925685,1715596238888,-1000.0,0.00012776,2]
[326925686,1715596238898,-200.0,0.00012777,2]
[326925687,1715596238907,-1000.0,0.00012777,2]
[326925688,1715596238916,-200.0,0.00012777,2]
[326925689,1715596238925,-500.0,0.00012777,2]
[326925690,1715596238934,-161.26188824,0.0001278,2]
[326925691,1715596238943,-152.10763623,0.0001278,2]
[326925692,1715596238952,-304.7,0.000128,2]
[326925693,1715596238962,-161.26188819,0.000128,2]
[326925694,1715596238972,-1000.0,0.000128,2]
[326925695,1715596238981,-161.26188819,0.0001282,2]
[326925696,1715596238990,-111.72724229,0.0001284,2]
[326925697,1715596239003,-49.5346459,0.0001284,2]
[326925698,1715596239012,-161.26188819,0.0001286,2]
[326925699,1715596239021,-2528.0928301,0.00012866,2]
[326925700,1715596239031,-765.47432826,0.0001287,2]
[326925701,1715596239044,-2967.44667174,0.0001287,2]
[326925702,1715596239053,-3329.3046049,0.0001287,2]
[326925703,1715596239065,-94344.32133548,0.0001287,2]
[326925704,1715596239076,-518.28,0.00012877,2]
[326925705,1715596239089,-500.0,0.00012877,2]
[326925706,1715596239102,-500.0,0.00012877,2]
[326925707,1715596239112,-279.72567193,0.00012877,2]
[326925708,1715596239123,-500.0,0.00012877,2]
[326925709,1715596239134,-500.0,0.00012877,2]
[326925710,1715596239144,-500.0,0.00012877,2]
[326925711,1715596239155,-734.71,0.00012877,2]
[326925712,1715596239166,-500.0,0.00012877,2]
[326925713,1715596239176,-500.0,0.00012877,2]
[326925714,1715596239187,-366.88353949,0.00012877,2]
[326925715,1715596239197,-640.43,0.00012877,2]
[326925716,1715596239206,-237.37804278,0.00012877,2]
[326925717,1715596239216,-500.0,0.00012877,2]
[326925718,1715596239226,-500.0,0.00012877,2]
[326925719,1715596239236,-500.0,0.00012877,2]
[326925720,1715596239246,-500.0,0.00012877,2]
[326925721,1715596239255,-500.0,0.00012877,2]
[326925722,1715596239265,-588.56,0.00012877,2]
[326925723,1715596239276,-508.85717026,0.00012877,2]
[326925724,1715596239286,-500.0,0.00012877,2]
[326925725,1715596239296,-507.07452747,0.00012877,2]
[326925726,1715596239306,-500.0,0.00012877,2]
[326925727,1715596239316,-505.22696421,0.00012877,2]
[326925728,1715596239326,-500.0,0.00012877,2]
[326925730,1715596239336,-500.0,0.00012877,2]
[326925731,1715596239347,-151.099651,0.00012877,2]
[326925732,1715596239357,-500.0,0.00012877,2]
[326925733,1715596239367,-500.0,0.00012877,2]
[326925734,1715596239377,-500.0,0.00012877,2]
[326925735,1715596239387,-2358.78776413,0.00012878,2]
[326925736,1715596239398,-323.86893567,0.00012878,2]
[326925737,1715596239408,-155.2123534,0.00012878,2]
[326925738,1715596239418,-1246.86092123,0.00012878,2]
[326925739,1715596239429,-165.95926671,0.00012878,2]
[326925740,1715596239439,-157.54570993,0.00012878,2]
[326925741,1715596239449,-515.78588726,0.00012878,2]
[326925742,1715596239459,-296.10349715,0.00012878,2]
[326925743,1715596239469,-155.0,0.00012878,2]
[326925744,1715596239480,-969.72210365,0.00012878,2]
[326925745,1715596239490,-155.13619659,0.00012878,2]
[326925746,1715596239500,-480.34302988,0.00012878,2]
[326925747,1715596239510,-500.0,0.00012878,2]
[326925748,1715596239520,-500.0,0.00012878,2]
[326925749,1715596239530,-500.0,0.00012878,2]
[326925750,1715596239541,-602.34,0.00012878,2]
[326925751,1715596239551,-550.25,0.00012878,2]
[326925752,1715596239561,-500.0,0.00012878,2]
[326925753,1715596239571,-536.95226347,0.00012878,2]
[326925754,1715596239581,-500.0,0.00012878,2]
[326925755,1715596239592,-500.0,0.00012878,2]
[326925756,1715596239603,-500.0,0.00012878,2]
[326925757,1715596239613,-507.7138541,0.00012878,2]
[326925758,1715596239622,-494.97074961,0.00012878,2]
[326925759,1715596239633,-519.65,0.00012878,2]
[326925760,1715596239642,-22106.6,0.00012878,3]
[326925761,1715596239652,-500.0,0.00012878,2]
[326925762,1715596239663,-540.95880382,0.00012878,2]
[326925763,1715596239673,-515.20992038,0.00012878,2]
[326925764,1715596239683,-290.51169174,0.00012878,2]
[326925765,1715596239693,-500.0,0.00012878,2]
[326925766,1715596239704,-582.85,0.00012878,2]
[326925767,1715596239715,-500.0,0.00012878,2]
[326925768,1715596239726,-223.65370089,0.00012878,2]
[326925769,1715596239736,-363.37607216,0.00012878,2]
[326925770,1715596239747,-619.97869442,0.00012878,2]
[326925771,1715596239758,-422.25102339,0.00012879,2]
[326925772,1715596239768,-500.0,0.00012879,2]
[326925773,1715596239778,-500.0,0.00012879,2]
[326925774,1715596239789,-412.99267022,0.00012879,2]
[326925775,1715596239799,-500.0,0.00012879,2]
[326925776,1715596239810,-200.0,0.00012879,2]
[326925777,1715596239821,-500.0,0.00012879,2]
[326925778,1715596239831,-500.0,0.00012879,2]
[326925779,1715596239841,-500.0,0.00012879,2]
[326925780,1715596239853,-734.71,0.00012879,2]
[326925781,1715596239863,-734.71,0.00012879,2]
[326925782,1715596239873,-734.71,0.00012879,2]
[326925783,1715596239883,-177.73,0.00012879,2]
[326925784,1715596239895,-500.0,0.00012879,2]
[326925785,1715596239905,-588.87926743,0.00012879,2]
[326925786,1715596239916,-640.43,0.00012879,2]
[326925787,1715596239926,-640.43,0.00012879,2]
[326925788,1715596239936,-640.43,0.00012879,2]
[326925789,1715596239946,-640.43,0.00012879,2]
[326925790,1715596239956,-640.43,0.00012879,2]
[326925791,1715596239965,-500.0,0.00012879,2]
[326925792,1715596239975,-500.0,0.00012879,2]
[326925793,1715596239985,-260.62,0.00012879,2]
[326925794,1715596239996,-500.0,0.00012879,2]
[326925795,1715596240006,-500.0,0.00012879,2]
[326925796,1715596240016,-500.0,0.00012879,2]
[326925797,1715596240026,-500.0,0.00012879,2]
[326925798,1715596240037,-500.0,0.00012879,2]
[326925799,1715596240047,-500.0,0.00012879,2]
[326925800,1715596240057,-500.0,0.00012879,2]
[326925801,1715596240066,-500.0,0.00012879,2]
[326925802,1715596240075,-500.0,0.00012879,2]
[326925803,1715596240089,-500.0,0.00012879,2]
[326925804,1715596240100,-504.245088,0.00012879,2]
[326925805,1715596240110,-524.7622627,0.00012879,2]
[326925806,1715596240120,-524.04,0.00012879,2]
[326925807,1715596240131,-519.65,0.00012879,2]
[326925808,1715596240141,-519.65,0.00012879,2]
[326925809,1715596240151,-519.65,0.00012879,2]
[326925810,1715596240161,-500.0,0.00012879,2]
[326925811,1715596240174,-500.0,0.00012879,2]
[326925812,1715596240186,-242.34129896,0.00012879,2]
[326925813,1715596240196,-500.0,0.00012879,2]
[326925814,1715596240206,-500.0,0.00012879,2]
[326925815,1715596240216,-500.0,0.00012879,2]
[326925816,1715596240225,-33394.0,0.0001288,2]
[326925817,1715596240235,-605.0,0.0001288,2]
[326925818,1715596240246,-49829.37645952,0.0001288,2]
[326925819,1715596240268,-1036.24451051,0.0001288,2]
[326925820,1715596240280,-334.13536002,0.0001288,2]
[326925821,1715596240576,-1049.18319148,0.0001288,2]
[326925822,1715596240931,-187761.60953074,0.0001288,2]
[326925823,1715596240943,-5480.18188464,0.0001288,2]
[326925824,1715596240955,-1589.5,0.0001288,2]
[326925825,1715596240967,-33407.40087675,0.0001288,2]
[326925826,1715596240978,-569.44888,0.0001288,2]
[326925827,1715596240990,-17100.0,0.0001288,2]
[326925897,1715596243589,-327.99466441,0.00012879,2]
[326925899,1715596243602,-1199.45518609,0.00012879,2]
[326925901,1715596243611,-4829.77560391,0.0001288,2]
[326925903,1715596243622,-35721.20775588,0.0001288,2]
[326925916,1715596247819,-547.84176427,0.0001288,2]
[326925917,1715596247832,-348.66582671,0.0001288,2]
[326925919,1715596247843,-7961.8201508,0.0001288,2]
[326925924,1715596302399,500.0,8.684e-05,2]
[326925925,1715596304700,500.0,9.506e-05,2]
[326925926,1715596306389,500.0,0.0001115,2]
[326925927,1715596331226,155.0,0.0001115,2]
[326925928,1715596353229,183.78080269,0.0001115,2]
[326926303,1715596406250,500.0,8.684e-05,2]
[326926375,1715596407998,500.0,0.00010328,2]
[326926533,1715596411794,800.0,9.506e-05,2]